[Event "Fagernes Chess GM-Swiss 2024"]
[Site "Fagernes"]
[Date "2024.03.27"]
[Round "5.17"]
[White "Vagman, Roy"]
[Black "Elsness, Frode"]
[Result "1/2-1/2"]
[ECO "C77"]
[WhiteElo "2311"]
[BlackElo "2437"]
[Annotator "RC"]
[PlyCount "115"]
[EventDate "2024.03.25"]
[EventType "swiss"]
[EventCountry "NOR"]
[SourceTitle "playchess.com"]
[Source "ChessBase"]
[SourceQuality "1"]
[TimeControl "40/6000+30:2400+30"]

1. e4 {[%emt 0:00:41]} e5 {[%emt 0:00:08]} 2. Nf3 {[%emt 0:00:05]} Nc6 {[%emt 0:00:03]} 3. Bb5 {[%emt 0:00:06]} a6 {[%emt 0:00:03]} 4. Ba4 {[%emt 0:00:05]} Nf6 {[%emt 0:00:05]} 5. Nc3 {[%emt 0:00:09]} b5 {[%emt 0:00:53]} 6. Bb3 {[%emt 0:00:05]} Bc5 {[%emt 0:00:39]} 7. Nd5 {[%emt 0:03:08]} O-O {[%emt 0:04:21]} 8. d3 {[%emt 0:00:39]} Nxd5 {[%emt 0:03:03]} 9. Bxd5 {[%emt 0:00:44]} Qe8 {[%emt 0:04:41]} 10. Nh4 {[%emt 0:20:14]} Rb8 {[%emt 0:11:37]} 11. Nf5 {[%emt 0:02:58]} Kh8 {[%emt 0:13:10]} 12. Qg4 {[%emt 0:12:20]} Rg8 {[%emt 0:00:43]} 13. Bg5 {[%emt 0:13:56]} Nd4 {[%emt 0:15:38]} 14. Nxd4 {[%emt 0:11:26]} Bxd4 {[%emt 0:02:22]} 15. c3 {[%emt 0:02:17]} Bb6 {[%emt 0:00:52]} 16. Qf3 {[%emt 0:04:53]} Rf8 {[%emt 0:02:01]} 17. Bf6 {[%emt 0:00:47]} c6 {[%emt 0:13:11]} 18. Bb3 {[%emt 0:00:34]} d6 {[%emt 0:01:22]} 19. g4 {[%emt 0:02:59]} Be6 {[%emt 0:01:47]} 20. Bc2 {[%emt 0:00:18]} Kg8 {[%emt 0:07:45]} 21. Bg5 {[%emt 0:00:37]} d5 {[%emt 0:02:08]} 22. h3 {[%emt 0:02:32]} Qd7 {[%emt 0:01:00]} 23. Be3 {[%emt 0:05:04]} d4 {[%emt 0:00:26]} 24. Bd2 {[%emt 0:00:07]} dxc3 {[%emt 0:03:17]} 25. bxc3 {[%emt 0:01:25]} c5 {[%emt 0:01:01]} 26. O-O {[%emt 0:03:43]} c4 {[%emt 0:01:01]} 27. Rfd1 {[%emt 0:01:34]} cxd3 {[%emt 0:01:34]} 28. Bxd3 {[%emt 0:01:04]} Qc6 {[%emt 0:01:40]} 29. Qe2 {[%emt 0:03:21]} Bc5 {[%emt 0:04:45]} 30. Be1 {[%emt 0:01:04]} Ba3 {[%emt 0:01:12]} 31. Kh2 {[%emt 0:04:11]} Rfc8 {[%emt 0:00:24]} 32. Rab1 {[%emt 0:01:07]} Qc5 {[%emt 0:02:02]} 33. Ra1 {[%emt 0:04:00]} Qe7 {[%emt 0:00:40]} 34. Rdb1 {[%emt 0:00:49]} Rb7 {[%emt 0:01:51]} 35. Bc2 {[%emt 0:00:18]} Bc4 {[%emt 0:00:56]} 36. Bd3 {[%emt 0:01:14]} Be6 {[%emt 0:00:25]} 37. Bc2 {[%emt 0:00:01]} Rd7 {[%emt 0:05:44]} 38. Bb3 {[%emt 0:00:14]} Rcd8 {[%emt 0:00:23]} 39. Rd1 {[%emt 0:00:53]} Bc5 {[%emt 0:01:50]} 40. Rxd7 {[%emt 0:01:56]} Rxd7 {[%emt 0:00:10]} 41. Rd1 {[%emt 0:40:34]} Qd8 {[%emt 0:43:23]} 42. Rxd7 {[%emt 0:00:50]} Qxd7 {[%emt 0:00:01]} 43. Bd2 {[%emt 0:01:44]} h5 {[%emt 0:00:00]} 44. Kg3 {[%emt 0:00:00]} hxg4 {[%emt 0:00:00]} 45. hxg4 {[%emt 0:00:00]} Qd6 {[%emt 0:00:00]} 46. Be3 {[%emt 0:00:00]} Bxe3 {[%emt 0:00:00]} 47. Qxe3 {[%emt 0:00:00]} Bxb3 {[%emt 0:00:00]} 48. axb3 {[%emt 0:00:00]} a5 {[%emt 0:00:00]} 49. Qe2 {[%emt 0:00:00]} Qc5 {[%emt 0:00:00]} 50. Qd3 {[%emt 0:00:00]} a4 {[%emt 0:00:00]} 51. b4 {[%emt 0:00:00]} Qc8 {[%emt 0:00:00]} 52. Qxb5 {[%emt 0:00:00]} a3 {[%emt 0:00:00]} 53. Qa4 {[%emt 0:02:49]} Qxc3+ {[%emt 0:00:00]} 54. Kg2 {[%emt 0:00:13]} Kh7 {[%emt 0:00:00]} 55. b5 {[%emt 0:01:41]} Qb2 {[%emt 0:00:00]} 56. Qa7 {[%emt 0:02:17]} a2 {[%emt 0:05:23]} 57. Qxf7 {[%emt 0:00:01]} a1=Q {[%emt 0:00:32]} 58. Qh5+ {[%emt 0:00:03]} 1/2-1/2

[Event "Fagernes Chess GM-Swiss 2024"]
[Site "Fagernes"]
[Date "2024.03.27"]
[Round "5.18"]
[White "Trost, Edvin"]
[Black "Stark, John"]
[Result "1-0"]
[ECO "E16"]
[WhiteElo "2432"]
[BlackElo "1947"]
[Annotator "TA"]
[PlyCount "55"]
[EventDate "2024.03.25"]
[EventType "swiss"]
[EventCountry "NOR"]
[SourceTitle "playchess.com"]
[Source "ChessBase"]
[SourceQuality "1"]
[TimeControl "40/6000+30:2400+30"]

{[%evp 17,55,12,3,4,6,15,14,0,48,44,104,103,138,142,151,136,149,149,208,199,319,312,297,309,329,309,537,550,531,548,618,635,656,646,723,728,743,739,735,722]} 1. Nf3 {[%emt 0:00:02]} Nf6 {[%emt 0:03:24]} 2. g3 {[%emt 0:00:08]} b6 {[%emt 0:03:28]} 3. Bg2 {[%emt 0:00:07]} Bb7 {[%emt 0:00:05]} 4. d4 {[%emt 0:00:47]} e6 {[%emt 0:01:32]} 5. c4 {[%emt 0:01:00]} Bb4+ {[%emt 0:04:12]} 6. Nbd2 {[%emt 0:00:36]} O-O {[%emt 0:03:11]} 7. O-O {[%emt 0:00:23]} d5 {[%emt 0:08:34]} 8. a3 {[%emt 0:00:11]} Be7 {[%emt 0:01:18]} 9. cxd5 {[%emt 0:00:14]} exd5 {[%emt 0:01:21]} 10. b4 {[%emt 0:00:07]} a5 {[%emt 0:06:07]} 11. b5 {[%emt 0:00:10]} a4 {[%emt 0:02:00]} 12. Ne5 {[%emt 0:07:17] The position is equal.} Qe8 {[%emt 0:01:55]} (12... c6 $11) 13. Rb1 $14 {[%emt 0:05:00]} Bd6 {[%emt 0:03:18]} (13... Ra5 $14) 14. Ndc4 $16 {[%emt 0:04:11]} Ne4 {[%emt 0:04:12] [#]} 15. Bxe4 $1 {[%emt 0:01:43]} dxe4 {[%emt 0:00:34] [#]} 16. Nxd6 $1 {[%emt 0:00:09]} cxd6 {[%emt 0:00:07] Black is weak on the dark squares} 17. Nc4 {[%emt 0:00:05][%csl LRb6,LRd6] White is more active.} Qd8 {[%emt 0:05:55]} (17... e3 $16 18. f3 (18. Nxe3 $2 Qe4 $19) (18. Nxd6 Qd7 $16) 18... d5 19. Nxb6 Ra5 20. Nxa4 Rxb5 21. Rxb5 Qxb5 22. Bxe3 Re8) 18. d5 $18 {[%emt 0:02:06]} Qc7 {[%emt 0:01:04]} (18... Nd7 {keeps fighting.} 19. Qd4 (19. Nxd6 Nc5 $18) 19... Nc5) 19. Qd4 {[%emt 0:01:01][%csl LRb6,LRe4]} Nd7 {[%emt 0:07:59]} 20. Bf4 $1 {[%emt 0:03:05]} (20. Qxe4 Rae8 21. Qd4 Nc5 $16) 20... Qc5 {[%emt 0:00:57]} 21. Rfd1 {[%emt 0:00:18]} (21. Qxe4 $2 {is the wrong capture.} Bxd5 22. Qe7 Qxc4 $19 (22... Bxc4 23. Qxd7 Qh5 24. Rfe1 $11)) 21... Nf6 $2 {[%emt 0:08:45]} (21... Ra7 22. Nxd6 (22. Qxe4 Nf6 $18) (22. Bxd6 Qxd4 23. Rxd4 Rc8 $18) 22... Qxd4 23. Rxd4 f5) 22. Bxd6 {[%emt 0:00:22] White is clearly winning.} Qxd4 {[%emt 0:00:07]} 23. Rxd4 {[%emt 0:00:03]} Rfd8 {[%emt 0:00:57]} 24. Be7 {[%emt 0:00:09]} Rxd5 {[%emt 0:01:15]} 25. Bxf6 {[%emt 0:00:06] aiming for Rxd5.} gxf6 {[%emt 0:00:13]} 26. Rxd5 {[%emt 0:00:05]} ({Weaker is} 26. Rxe4 Rxb5 27. Rg4+ (27. Rxb5 Bxe4 28. Nd6 Bc2 $18) 27... Rg5 28. Nxb6 (28. Rxg5+ fxg5 29. Nxb6 Ra5 $18) 28... Rxg4 $18) 26... Bxd5 {[%emt 0:00:05]} 27. Nxb6 {[%emt 0:00:03]} Rd8 {[%emt 0:00:12]} 28. Rd1 {[%emt 0:00:14] White took control after the opening.   Weighted Error Value: White=0.01 (flawless) /Black=0.58.  Mistake:       	---       	Black=5      Inaccurate:     	---       	Black=1      OK:         	White=7     	Black=2      Best:        	White=2     	---        Strong:       	White=3     	---} 1-0

[Event "Fagernes Chess GM-Swiss 2024"]
[Site "Fagernes"]
[Date "2024.03.27"]
[Round "5.19"]
[White "Nandhidhaa, P V"]
[Black "Sorensen, Hampus"]
[Result "1/2-1/2"]
[ECO "C54"]
[WhiteElo "2305"]
[BlackElo "2428"]
[Annotator "TA"]
[PlyCount "96"]
[EventDate "2024.03.25"]
[EventType "swiss"]
[EventCountry "NOR"]
[SourceTitle "playchess.com"]
[Source "ChessBase"]
[SourceQuality "1"]
[TimeControl "40/6000+30:2400+30"]

{[%evp 27,96,10,29,26,31,25,29,0,0,0,0,0,25,25,44,43,43,0,0,0,0,0,0,0,0,-6,0,-295,-77,-61,-25,-23,-4,-15,0,0,0,-18,-8,-34,-41,-48,0,0,0,19,47,42,49,39,68,48,91,14,12,8,15,18,45,10,17,13,17,0,7,5,15,11,13,13,20]} 1. e4 {[%emt 0:03:25]} e5 {[%emt 0:00:13]} 2. Nf3 {[%emt 0:00:19]} Nc6 {[%emt 0:00:07]} 3. Bc4 {[%emt 0:00:50]} Bc5 {[%emt 0:00:27]} 4. c3 {[%emt 0:00:13]} Nf6 {[%emt 0:00:12]} 5. d4 {[%emt 0:00:10]} exd4 {[%emt 0:00:08]} 6. e5 {[%emt 0:00:10]} d5 {[%emt 0:01:12]} 7. Bb5 {[%emt 0:00:22]} Ne4 {[%emt 0:00:24]} 8. cxd4 {[%emt 0:00:17]} Bb6 {[%emt 0:00:31]} 9. Nc3 {[%emt 0:01:07]} O-O {[%emt 0:02:12]} 10. Be3 {[%emt 0:00:44] C54: Giuoco Piano: 4 c3 Nf6, main lines with 5 d4 and 5 d3.} f5 {[%emt 0:04:00]} 11. exf6 {[%emt 0:01:35]} Nxf6 {[%emt 0:00:34]} 12. Bxc6 {[%emt 0:02:02]} bxc6 {[%emt 0:00:16]} 13. Ne5 {[%emt 0:00:16]} Qd6 {[%emt 0:11:40]} 14. O-O {[%emt 0:01:43]} Nd7 {[%emt 0:04:18]} 15. Nxd7 {[%emt 0:03:07]} Bxd7 {[%emt 0:00:55]} 16. Rc1 {[%emt 0:04:38]} Rae8 {[%emt 0:04:35]} 17. a3 {[%emt 0:13:28]} Qg6 {[%emt 0:04:16]} 18. Kh1 $1 {[%emt 0:01:35]} h5 $146 {[%emt 0:09:51]} ({Predecessor:} 18... Bg4 19. Qd2 Qf6 20. f3 Bd7 21. g3 Re7 22. Rfe1 Ref7 {0-1 Kolomensky,V (2101)-Druchenko,M (1829) Eurasia Cup op 2019 (7)}) 19. h3 {[%emt 0:09:15]} Rf6 {[%emt 0:06:51]} 20. Ne2 {[%emt 0:03:45]} Re4 {[%emt 0:17:52]} 21. Rc3 {[%emt 0:06:27]} (21. Kh2 {with more complications.} Rf8 22. Qd2 a5 23. Rfe1) 21... Rf8 {[%emt 0:12:04]} 22. Ng1 {[%emt 0:20:48]} Qf6 $1 {[%emt 0:07:27]} 23. Qxh5 {[%emt 0:03:26]} Bxd4 {[%emt 0:01:22]} 24. Bxd4 {[%emt 0:00:44]} Rxd4 {[%emt 0:01:11]} 25. Nf3 {[%emt 0:01:05]} Rf4 {[%emt 0:00:32]} 26. Re1 {[%emt 0:03:38]} d4 {[%emt 0:04:02]} 27. Rc4 $2 {[%emt 0:04:48][%mdl 8192] [#]} (27. Rc5 $11 {and White is okay.}) 27... Rf5 $2 {[%emt 0:01:21]} (27... g6 $1 $19 {[%cal Rg6h5] and Black stays clearly on top.} 28. Qe5 Rxf3 29. Qxf6 (29. gxf3 Qxf3+ 30. Kh2 Qxf2+ 31. Kh1 Rf3) 29... R3xf6 30. Rxd4 Rd6) 28. Qg4 $17 {[%emt 0:00:03]} Rd5 {[%emt 0:00:20]} (28... c5 $5 29. b4 d3 $17) 29. Qg3 $1 {[%emt 0:02:43]} d3 {[%emt 0:00:43]} 30. Rc3 {[%emt 0:00:05]} Bf5 {[%emt 0:06:43]} 31. Nd2 {[%emt 0:01:41]} (31. Qxc7 Bxh3 32. Qg3 Bc8 $17) 31... Rd6 {[%emt 0:02:10]} 32. Nc4 {[%emt 0:02:41]} Re6 {[%emt 0:01:28]} 33. Rxe6 {[%emt 0:01:12]} Qxe6 {[%emt 0:00:14]} 34. Qe3 {[%emt 0:00:57]} Qd5 {[%emt 0:02:54]} (34... Re8 $1 $15 35. Qxe6+ Rxe6) 35. Nd2 $11 {[%emt 0:01:30]} (35. Qxa7 Bxh3 (35... d2 $2 36. Nxd2 Qxd2 37. Qxc7 $19) 36. Ne3 Bxg2+ 37. Kg1 (37. Kh2 Qh5+ 38. Kxg2 Qg5+) 37... Qh5 (37... d2 38. Nxd5 d1=Q+ 39. Kxg2 $11) 38. Nxg2 d2 $19) 35... Bg6 {[%emt 0:00:48]} 36. Rc5 {[%emt 0:00:42]} (36. Qxa7 $2 {perishes.} Qe5 37. Rxc6 (37. Qe3 $2 Qxe3 38. fxe3 Rf2 $19) 37... Qe1+ (37... Qxb2 $2 38. Rxg6 Qc1+ 39. Kh2 $18) 38. Kh2 Qxd2 (38... Qxf2 39. Qxf2 Rxf2 40. Rxg6 $11) (38... Rxf2 39. Rxg6 Qe5+ 40. Rg3 $16) 39. Qxc7 (39. Rxg6 $2 Qf4+ 40. Rg3 d2 $19) 39... Qg5 $19) 36... Qf7 {[%emt 0:01:54]} 37. Kg1 {[%emt 0:01:30]} (37. Rxc6 Qxf2 38. Qg5 Bf7 $11) 37... Qf6 {[%emt 0:01:12]} 38. Re5 {[%emt 0:00:54]} Bf7 {[%emt 0:01:24]} 39. f4 {[%emt 0:03:28]} Bd5 {[%emt 0:00:35] [#]} 40. Qxd3 {[%emt 0:02:10]} ({But not} 40. Qxa7 $6 Qxf4 41. Qe3 Qf6 $11) (40. g3 $1 $16) 40... Qxf4 $11 {[%emt 0:00:10]} (40... Qh4 {simplifies} 41. Qe3 Qxf4 42. Qxf4 Rxf4 43. Re7 Rd4) 41. Qe3 {[%emt 0:41:58]} Qf6 {[%emt 0:05:49]} (41... Qxe3+ {simplifies} 42. Rxe3 Rb8 43. b3 Kf7) 42. b4 {[%emt 0:00:00]} Qg6 {[%emt 0:01:24]} 43. Qe2 {[%emt 0:00:00]} (43. Qxa7 $2 Qxg2#) 43... Qg3 {[%emt 0:04:30]} 44. Re3 {[%emt 0:00:00]} Qf4 {[%emt 0:00:59]} 45. Re8 {[%emt 0:00:00]} Qd4+ {[%emt 0:03:30]} 46. Qe3 {[%emt 0:00:00]} Qxe3+ {[%emt 0:03:12]} 47. Rxe3 {[%emt 0:00:00]} a5 {[%emt 0:00:11]} 48. bxa5 {[%emt 0:00:00]} Rf4 {[%emt 0:05:59]} 1/2-1/2

[Event "Fagernes Chess GM-Swiss 2024"]
[Site "Fagernes"]
[Date "2024.03.27"]
[Round "5.20"]
[White "Eliseev, Sergey"]
[Black "Tsolakidou, Stavroula"]
[Result "0-1"]
[ECO "B30"]
[WhiteElo "2131"]
[BlackElo "2424"]
[Annotator "TA"]
[PlyCount "122"]
[EventDate "2024.03.25"]
[EventType "swiss"]
[EventCountry "NOR"]
[SourceTitle "playchess.com"]
[Source "ChessBase"]
[SourceQuality "1"]
[TimeControl "40/6000+30:2400+30"]

{[%evp 9,122,37,41,35,39,31,43,34,32,27,28,12,49,29,37,23,26,-4,9,-2,9,0,0,-59,-56,-43,-41,-40,-21,-181,-114,-99,-126,-97,-117,-102,-56,-87,-88,-100,-93,-116,-127,-97,-62,-73,-49,-53,-20,-17,-10,-6,-8,-8,-9,-53,-65,-64,-59,-41,-40,-60,-60,-69,-51,-35,-44,-31,-33,-111,-96,-105,-103,-102,-107,-101,-96,-102,-103,-126,-129,-122,-124,-123,-127,-131,-121,-162,-170,-168,-167,-173,-177,-312,-304,-301,-304,-392,-376,-886,-711,-29967,-29964,-29979,-29980,-29980,-29981,-29981,-29982,-29984,-29983,-29983,-29984,-29984,-29983]} 1. e4 {[%emt 0:11:17]} c5 {[%emt 0:00:14]} 2. Nf3 {[%emt 0:00:39]} Nc6 {[%emt 0:00:08]} 3. Nc3 {[%emt 0:02:34]} e5 {[%emt 0:02:36]} 4. Bc4 {[%emt 0:00:43]} g6 {[%emt 0:00:18]} 5. d3 {[%emt 0:00:32]} h6 $1 {[%emt 0:00:14]} 6. O-O {[%emt 0:04:47]} Bg7 {[%emt 0:00:25]} 7. a3 {[%emt 0:00:51]} d6 {[%emt 0:03:49] [#]} 8. b4 $1 {[%emt 0:03:50] White is slightly better.} Nge7 {[%emt 0:01:28]} 9. Nd5 {[%emt 0:09:10]} O-O {[%emt 0:03:03]} 10. c3 {[%emt 0:04:40]} Kh7 {[%emt 0:03:54]} 11. Be3 {[%emt 0:03:01]} b6 {[%emt 0:03:19]} 12. b5 {[%emt 0:05:28]} Na5 {[%emt 0:03:29]} 13. Ba2 {[%emt 0:02:10]} (13. Nxe7 {simplifies} Nxc4 14. Nxc8 Nxe3 15. fxe3 Rxc8 16. Qb3) 13... f5 {[%emt 0:00:49]} 14. exf5 {[%emt 0:07:04]} Bxf5 {[%emt 0:05:56]} 15. Ng5+ {[%emt 0:08:11]} Kh8 $1 {[%emt 0:09:45]} (15... hxg5 $6 16. Bxg5 Nxd5 17. Bxd8 Nxc3 18. Qd2 $16) 16. g4 {[%emt 0:00:50]} (16. Ne4 $11) 16... Bd7 $1 $15 {[%emt 0:07:07] Strongly threatening ...Nxd5.} 17. Ne4 $1 {[%emt 0:07:42]} Bxb5 {[%emt 0:02:35]} 18. g5 $1 {[%emt 0:09:03]} h5 {[%emt 0:07:48]} 19. Ng3 $2 {[%emt 0:04:43]} (19. f4 $11 {and White is okay.} Nxd5 20. Bxd5 exf4 21. Bxa8) 19... Nxd5 {[%emt 0:19:03]} ({Better is} 19... c4 $19 20. dxc4 Nxc4 (20... Bxc4 21. Nf6 $17)) 20. Bxd5 $17 {[%emt 0:00:17]} Bc6 {[%emt 0:00:03]} 21. Bxc6 {[%emt 0:01:40]} Nxc6 {[%emt 0:00:05]} 22. Nxh5 {[%emt 0:00:07][%cal Od1a4]} Ne7 {[%emt 0:07:02]} (22... gxh5 $2 23. Qxh5+ Kg8 24. g6 $18) (22... Qd7 $17 23. Ng3 d5) 23. Ng3 {[%emt 0:00:53]} Qd7 {[%emt 0:00:27]} 24. c4 {[%emt 0:05:47]} Qh3 {[%emt 0:02:50]} (24... Rf7 {simplifies} 25. f3 Raf8 26. Ra2 d5) 25. f3 {[%emt 0:00:46]} Nf5 {[%emt 0:09:40] Black has more active pieces.} 26. Nxf5 {[%emt 0:00:04]} Rxf5 {[%emt 0:00:04]} 27. Ra2 {[%emt 0:00:57]} Raf8 {[%emt 0:00:05]} 28. Raf2 {[%emt 0:00:10]} R8f7 {[%emt 0:00:13]} 29. Qe2 {[%emt 0:04:24]} Kg8 {[%emt 0:00:46]} 30. Bd2 {[%emt 0:01:09]} Bf8 {[%emt 0:02:01]} 31. Qe4 {[%emt 0:00:10]} Be7 {[%emt 0:00:47]} 32. Qg4 {[%emt 0:00:01]} Rh7 {[%emt 0:01:06] ...Qxg4+ would now be deadly.} 33. Rg2 {[%emt 0:01:19][%cal Bf2g2,Bg2g3,Bg3f3][%mdl 32]} Rh4 {[%emt 0:00:51]} 34. Qxh3 {[%emt 0:01:09]} Rxh3 {[%emt 0:00:04]} 35. Rg3 {[%emt 0:00:14]} Rh5 {[%emt 0:01:05]} (35... Rxg3+ 36. hxg3 Rf7 (36... Bxg5 37. Bxg5 Rxg5 38. g4 $16) 37. a4 $11) 36. f4 {[%emt 0:00:43]} exf4 {[%emt 0:02:00]} (36... d5 $5 37. Kg2 exf4 38. Bxf4 dxc4 (38... Bxg5 39. Bb8 $14) 39. dxc4 Rh4 $17 (39... Bxg5 40. Bb8 $15)) 37. Bxf4 {[%emt 0:00:26]} Rh4 {[%emt 0:00:43]} 38. Rgf3 {[%emt 0:01:22]} d5 $36 {[%emt 0:06:46][%mdl 2048] Black is pushing.} 39. Kh1 {[%emt 0:00:01] White is now going downhill.} (39. cxd5 $15 Bxg5 (39... Rxd5 40. Re1 $11) 40. Be5) 39... dxc4 {[%emt 0:01:16]} (39... Bxg5 $2 40. Bxg5 Rd4 (40... Rxg5 41. Rf8+ Kg7 42. R1f7+ Kh6 43. Rh8#) 41. Rxf5 gxf5 42. Rxf5 dxc4 43. dxc4 $18) 40. dxc4 {[%emt 0:01:03]} Kg7 {[%emt 0:03:32]} (40... Bxg5 41. Bxg5 Rxf3 (41... Rxg5 42. Rf8+ Kh7 43. R1f7+ Kh6 44. Rh8#) 42. Rxf3 $18) 41. Bb8 {[%emt 0:16:54][%csl LRa7,LRf5]} (41. Re1 $2 Bd6 (41... Rfxf4 42. Rxe7+ Kf8 43. Rxf4+ Rxf4 44. Rxa7 $11) (41... Bxg5 $2 42. Bxg5 Rxg5 43. Re7+ Kh6 44. Rxa7 $17) 42. Bg3 Rxf3 $19 (42... Rxc4 $2 43. Rxf5 gxf5 44. Bxd6 $18)) 41... Rxf3 {[%emt 0:01:19]} (41... Rxc4 42. Rxf5 gxf5 43. Rxf5 $15) 42. Rxf3 {[%emt 0:00:02]} Rxc4 {[%emt 0:01:32]} 43. Bxa7 {[%emt 0:00:03][%mdl 4096] Endgame. KRB-KRB} b5 {[%emt 0:02:47][%cal Oc4e4]} ({Don't play} 43... Bxg5 44. Bxb6 Be7 45. h3 $15) 44. Rb3 {[%emt 0:01:10] [#]} b4 $1 {[%emt 0:09:12]} ({Much worse is} 44... Bxg5 $6 45. Rxb5 Be3 46. a4 $11) 45. axb4 {[%emt 0:00:01]} cxb4 {[%emt 0:00:05][%cal Og7f7]} 46. Be3 {[%emt 0:09:43]} Kf7 {[%emt 0:00:58] aiming for ...Rc3.} 47. Kg2 {[%emt 0:00:45]} Rc2+ {[%emt 0:01:00]} 48. Kg3 {[%emt 0:05:06]} Ke6 {[%emt 0:01:30]} 49. h4 {[%emt 0:02:40]} Bd6+ {[%emt 0:03:05]} 50. Kf3 {[%emt 0:03:44]} Rh2 {[%emt 0:00:21][%cal Oe6f5]} 51. Ke4 {[%emt 0:03:50]} (51. Rd3 $142) 51... Rxh4+ $19 {[%emt 0:00:10]} 52. Kd3 {[%emt 0:00:02]} Kd5 {[%emt 0:00:40] Threatens to win with ...Rh3.} 53. Rb1 {[%emt 0:00:28]} Rh3 {[%emt 0:00:50]} 54. Rd1 $2 {[%emt 0:00:13]} (54. Kd2) 54... Be5 {[%emt 0:01:07] ( -> ...Bd4)} 55. Ke2+ {[%emt 0:01:44]} Ke4 {[%emt 0:00:30] Black mates.} 56. Bc5 {[%emt 0:01:40]} b3 {[%emt 0:01:03]} 57. Re1 {[%emt 0:04:38]} Bc3 {[%emt 0:01:00]} 58. Rb1 {[%emt 0:01:49]} Rh2+ {[%emt 0:01:08]} 59. Bf2 {[%emt 0:00:27]} Bd4 {[%emt 0:01:29]} 60. Rxb3 {[%emt 0:00:12]} Rxf2+ {[%emt 0:00:05]} 61. Ke1 {[%emt 0:00:03]} Rg2 {[%emt 0:00:27] Weighted Error Value: White=0.31/Black=0.07 (flawless) .  Mistake:       	White=5     	Black=2      Inaccurate:     	White=5     	Black=3      OK:         	White=15    	Black=21     Best:        	White=4     	Black=8      Strong:       	White=2     	Black=2} 0-1